bitfinex-derivatives/quotes_ETHF0:USTF0_20251203
["timestamp","ask_amount","ask_price","bid_price","bid_amount"]
[1764756074920,4.7747,3060.9,3060.8,1.548]
[1764756075114,1.5669,3060.9,3060.8,1.548]
[1764756077826,1.5669,3060.9,3060.8,2.7174394]
[1764756079228,1.5669,3060.9,3060.8,1.548]
[1764756081837,1.5669,3060.9,3060.8,1.9742394]
[1764756082328,1.5669,3060.9,3060.8,2.7174394]
[1764756082530,1.5669,3060.9,3060.8,1.548]
[1764756082830,0.8018,3060.9,3060.8,1.548]
[1764756083134,1.57123998,3061.1,3061.0,1.548]
[1764756083433,1.57123998,3061.1,3061.0,2.71512223]
[1764756083730,0.80613998,3061.1,3061.0,2.71512223]
[1764756083921,1.57123998,3061.1,3061.0,2.71512223]
[1764756084631,1.57123998,3061.1,3061.0,1.548]
[1764756085726,0.80613998,3061.1,3061.0,3.18632223]
[1764756087127,0.80613998,3061.1,3061.0,2.0192]
[1764756087331,0.80613998,3061.1,3061.0,2.18251]
[1764756087631,0.00433998,3061.1,3061.0,3.34963223]
[1764756088126,0.80613998,3061.1,3061.0,3.34963223]
[1764756088321,0.00433998,3061.1,3061.0,4.49767669]
[1764756088625,0.00433998,3061.1,3061.0,3.33055446]
[1764756088826,4.7747,3061.7,3061.6,1.548]
[1764756089535,4.7747,3061.7,3061.6,1.71128]
[1764756089733,4.0096,3061.7,3061.6,1.71128]
[1764756089925,4.01334607,3061.7,3061.6,1.71128]
[1764756090326,0.00374607,3061.7,3061.6,1.71128]
[1764756090727,0.00374607,3061.7,3061.6,2.87657797]
[1764756091022,0.00374607,3061.7,3061.6,1.71128]
[1764756091023,1.57064607,3061.7,3061.6,1.71128]
[1764756091324,1.57064607,3061.7,3061.6,0.96808]
[1764756091532,1.57064607,3061.7,3061.6,1.71128]
[1764756092436,1.57064607,3061.7,3061.6,0.96808]
[1764756093435,1.57064607,3061.7,3061.6,1.71128]
[1764756094433,1.57064607,3061.7,3061.6,0.96808]
[1764756094737,1.57064607,3061.7,3061.6,1.71508]
[1764756095737,0.00374607,3061.7,3061.6,1.71508]
[1764756096434,0.00374607,3061.7,3061.6,4.92288]
[1764756096740,3.033e-05,3061.7,3061.6,6.67082695]
[1764756098143,0.81023033,3061.7,3061.6,4.92288]
[1764756098440,0.81023033,3061.7,3061.6,3.37108]
[1764756098441,3.033e-05,3061.7,3061.6,3.37108]
[1764756099234,3.033e-05,3061.7,3061.6,4.53255693]
[1764756102436,3.033e-05,3061.7,3061.6,3.37108]
[1764756102640,4.7594,3062.6,3062.0,0.4708]
[1764756102940,3.9782,3062.6,3062.5,1.9313]
[1764756103629,3.98202804,3062.6,3062.5,1.93453882]
[1764756103940,4.76322804,3062.6,3062.5,1.93453882]
[1764756104746,3.98202804,3062.6,3062.5,1.93453882]
[1764756105847,3.21162804,3062.6,3062.5,1.93453882]
[1764756106740,0.00382804,3062.6,3062.5,5.30556882]
[1764756106937,1.55542804,3062.6,3062.5,4.17306882]
[1764756107346,1.55542804,3062.6,3062.5,4.93156882]
[1764756109946,1.55542804,3062.6,3062.5,1.72376882]
[1764756110145,0.77422804,3062.6,3062.5,1.72376882]
[1764756110540,1.55542804,3062.6,3062.5,1.72376882]
[1764756112649,0.77422804,3062.6,3062.5,1.72376882]
[1764756113039,0.00382804,3062.6,3062.5,2.08966882]
[1764756114547,0.00382804,3062.6,3062.5,4.39878422]
[1764756115052,0.00382804,3062.6,3062.5,4.98566023]
[1764756115254,3.9782,3063.3,3063.2,1.5573]
[1764756115549,3.2078,3063.3,3063.2,1.5573]
[1764756115757,3.2078,3063.3,3063.2,1.72049]
[1764756116253,4.7594,3063.7,3063.6,1.5573]
[1764756116444,4.76320964,3063.7,3063.6,0.7988]
[1764756118047,4.76320964,3063.7,3063.6,1.5573]
[1764756122854,3.98200964,3063.7,3063.6,1.5573]
[1764756123048,3.21160964,3063.7,3063.6,1.5573]
[1764756124547,4.71340964,3063.7,3063.6,1.5573]
[1764756124854,1.5018,3062.9,3062.8,4.7616]
[1764756125852,1.5018,3062.9,3062.8,3.2078]
[1764756126458,1.5018,3062.9,3062.8,3.9795]
[1764756127854,1.5018,3062.9,3062.8,3.2078]
[1764756129649,1.5018,3062.9,3062.8,3.9795]
[1764756130859,1.5018,3062.9,3062.8,3.2078]
[1764756131049,1.5018,3062.6,3062.5,0.77493882]
[1764756131250,2.64984446,3062.6,3062.5,0.00323882]
[1764756133166,2.64984446,3062.6,3062.5,1.55703882]
[1764756133463,1.5018,3062.6,3062.5,1.55703882]
[1764756133661,1.5018,3062.6,3062.5,0.77493882]
[1764756134370,1.5018,3062.6,3062.5,0.00323882]
[1764756134657,1.5018,3062.6,3062.2,0.00490276]
[1764756134658,2.64984446,3062.6,3062.2,0.00490276]
[1764756134853,0.465,3063.0,3061.9,4.7616]
[1764756134854,1.5018,3062.0,3061.9,4.7616]
[1764756135660,1.9668,3062.0,3061.9,3.21067876]
[1764756136365,1.9668,3062.0,3061.9,3.98237876]
[1764756136866,1.9668,3062.0,3061.9,3.21067876]
[1764756137461,1.9668,3062.0,3061.9,0.00287876]
[1764756138268,5.1746,3062.0,3061.9,0.00287876]
[1764756139167,5.1746,3062.0,3061.9,0.77457876]
[1764756139562,3.9436,3062.0,3061.9,1.55667876]
[1764756139768,4.7096,3062.0,3061.9,1.55667876]
[1764756140075,5.1746,3062.0,3061.9,1.55667876]
[1764756142365,5.1746,3062.0,3061.9,0.77457876]
[1764756142862,5.1746,3062.0,3061.9,1.55667876]
[1764756143061,5.1746,3062.0,3061.9,0.77457876]
[1764756144564,5.1746,3062.0,3061.9,1.55667876]
[1764756144770,5.1746,3062.0,3061.9,0.77457876]
[1764756145168,5.1746,3062.0,3061.9,1.55667876]
[1764756145570,4.7096,3062.0,3061.9,1.55667876]
[1764756147258,3.9436,3062.0,3061.9,1.55667876]
[1764756148369,0.7358,3062.0,3061.9,1.55667876]
[1764756149379,1.50670276,3062.3,3062.2,0.7717]
[1764756149671,1.5018,3062.0,3061.9,1.55667876]
[1764756149971,1.9668,3062.5,3062.4,1.5538]
[1764756150267,3.9436,3062.9,3062.8,1.5538]
[1764756151166,3.2078,3062.9,3062.8,1.5538]
[1764756151368,3.9738,3063.3,3063.2,0.7821]
[1764756151568,4.7096,3063.3,3063.2,1.5538]
[1764756152757,1.5018,3062.9,3062.8,3.2078]
[1764756152964,1.5018,3062.7,3062.6,1.16237731]
[1764756153170,1.5018,3062.7,3062.4,5.11898695]
[1764756153171,1.9967,3062.5,3062.4,6.05121731]
[1764756153368,1.5352,3062.5,3062.4,6.05121731]
[1764756154364,0.465,3063.0,3062.5,0.4544]
[1764756154564,1.5713,3062.6,3062.5,0.7726]
[1764756154966,1.5713,3062.6,3062.5,1.5187]
[1764756155171,1.5713,3062.6,3062.5,2.68296171]
[1764756155372,0.7719,3062.6,3062.5,2.68296171]
[1764756155572,1.5713,3062.6,3062.5,2.68296171]
[1764756155869,1.5713,3062.6,3062.5,2.84619171]
[1764756156571,1.5713,3062.6,3062.5,0.16323]
[1764756156888,1.5713,3062.6,3062.5,1.75453]
[1764756157278,1.5713,3062.6,3062.5,2.91879171]
[1764756158181,1.5713,3062.6,3062.5,1.75453]
[1764756158892,1.5713,3062.6,3062.5,0.16323]
[1764756159183,1.9963,3062.5,3062.4,3.2078]
[1764756159972,1.5424,3062.1,3062.0,1.95796171]
[1764756160171,1.5424,3062.1,3062.0,0.7937]
[1764756160670,1.9963,3062.0,3061.9,0.00287876]
[1764756162776,1.9963,3062.0,3061.9,0.79657876]
[1764756162974,1.9963,3062.0,3061.9,0.00287876]
[1764756168491,1.9963,3062.0,3061.9,1.59417876]
[1764756169384,1.9963,3062.0,3061.9,0.79657876]
[1764756170782,1.5424,3062.0,3061.9,1.59417876]
[1764756171683,1.9963,3062.0,3061.9,1.59417876]
[1764756174080,1.9963,3062.0,3061.9,0.79657876]
[1764756175488,1.9963,3062.0,3061.9,1.59417876]
[1764756178885,3.6617,3062.5,3062.2,0.7937]
[1764756179090,1.5424,3062.3,3062.2,0.7937]
[1764756179401,1.5424,3062.0,3061.9,1.59417876]
[1764756181085,40.8,3062.4,3061.9,1.59417876]
[1764756181392,40.8,3062.4,3062.3,0.7937]
[1764756181690,1.5424,3062.1,3062.0,1.5913]
[1764756181901,1.5424,3062.1,3062.0,0.7937]
[1764756182790,1.9963,3062.0,3061.9,0.00287876]
[1764756190195,1.9963,3062.0,3061.9,1.16714047]
[1764756192298,1.9963,3062.0,3061.9,0.00287876]
[1764756192797,1.9963,3062.0,3061.9,1.16714047]
[1764756193300,1.9963,3062.0,3061.9,2.73484047]
[1764756193599,1.9963,3062.0,3061.9,0.00287876]
[1764756193790,1.9963,3062.0,3061.9,1.17099004]
[1764756195096,3.2078,3062.5,3062.4,1.5677]
[1764756195297,3.9906,3062.5,3062.4,1.73094]
[1764756195692,0.7828,3062.5,3062.4,3.48158396]
[1764756195988,44.0078,3062.9,3062.8,0.7738]
[1764756196199,44.0078,3062.9,3062.8,1.5677]
[1764756196391,4.7499,3062.9,3062.8,1.5677]
[1764756198005,3.9906,3062.9,3062.8,1.5677]
[1764756198803,4.7499,3062.9,3062.8,1.5677]
[1764756199399,3.2078,3062.9,3062.8,1.5677]
[1764756199595,3.9906,3063.3,3063.2,0.7738]
[1764756199800,4.7499,3063.3,3063.2,0.7738]
[1764756199996,3.2078,3063.3,3063.2,1.5677]
[1764756200202,1.5421,3063.3,3063.2,0.7738]
[1764756200403,1.5421,3063.2,3063.1,3.2078]
[1764756200704,1.5421,3063.2,3063.1,4.7755]
[1764756201007,0.7828,3063.2,3063.1,4.7755]
[1764756201503,41.2693,3063.5,3063.4,1.5677]
[1764756201703,41.2693,3063.5,3063.4,0.7738]
[1764756201898,1.5421,3063.2,3063.1,3.21270276]
[1764756202104,1.5421,3063.2,3063.1,3.98650276]
[1764756202303,1.5421,3063.2,3063.1,4.78040276]
[1764756203399,0.7828,3063.2,3063.1,4.78040276]
[1764756203905,1.5421,3063.5,3063.4,1.5677]
[1764756204212,0.00380964,3063.7,3063.6,1.5677]
[1764756204502,0.00380964,3063.7,3063.6,4.7755]
[1764756204709,0.00380964,3063.7,3063.6,4.93867]
[1764756205306,1.5421,3063.7,3063.6,4.93867]
[1764756205699,2.0114,3064.0,3063.9,1.5677]
[1764756205897,1.5421,3063.7,3063.6,3.9816]
[1764756206097,2.6921962,3063.7,3063.6,3.2078]
[1764756206297,0.00367903,3063.7,3063.6,4.7755]
[1764756206706,0.78647903,3063.7,3063.6,4.7755]
[1764756207007,1.54577903,3063.7,3063.6,4.7755]
[1764756207607,2.0114,3063.5,3063.4,0.16318]
[1764756208012,2.0114,3063.5,3063.4,0.93698]
[1764756208307,1.5421,3063.2,3063.1,4.78040276]
[1764756210917,0.7828,3063.2,3063.1,4.78040276]
[1764756213622,1.5421,3063.2,3063.1,4.78040276]
[1764756214720,1.5421,3063.2,3063.1,3.98650276]
[1764756215016,1.5421,3063.2,3063.1,0.00490276]
[1764756217631,1.5421,3063.2,3063.1,1.52900276]
[1764756217825,1.5421,3063.2,3063.1,0.74310276]
[1764756218023,2.68851717,3063.2,3063.1,0.00490276]
[1764756219528,1.5421,3063.2,3063.1,1.52900276]
[1764756220223,1.5421,3063.2,3063.1,0.00490276]
[1764756220623,2.68851717,3063.2,3063.1,0.00490276]
[1764756220825,5.89631717,3063.2,3063.1,0.00490276]
[1764756221626,1.49637903,3063.7,3063.6,1.5241]
[1764756221833,1.4927,3063.6,3063.5,0.16318]
[1764756222040,2.63911717,3063.6,3063.5,0.16318]
[1764756223434,2.63911717,3063.6,3063.1,1.52900276]
[1764756223435,1.4927,3063.2,3063.1,1.52900276]
[1764756223735,1.4927,3063.2,3063.1,0.00490276]
[1764756224038,2.63911717,3063.2,3063.1,0.00490276]
[1764756224428,1.4927,3063.2,3063.1,0.00490276]
[1764756226942,1.9338,3062.5,3062.4,1.16028715]
[1764756227146,1.9338,3062.5,3062.4,1.89848715]
[1764756227342,1.4927,3062.4,3062.3,5.10628715]
[1764756227739,1.4927,3062.4,3062.3,5.89218715]
[1764756228245,1.4927,3062.4,3062.3,5.10628715]
[1764756228446,1.4927,3062.4,3062.3,3.946]
[1764756228640,1.4927,3062.4,3062.3,3.2078]
[1764756229034,1.4927,3062.3,3062.2,1.16028715]
[1764756229239,1.4927,3062.2,3062.1,1.89848715]
[1764756230344,1.4927,3062.2,3062.1,1.5241]
[1764756230846,1.4927,3062.1,3062.0,0.00490276]
[1764756231546,42.2927,3062.1,3062.0,0.00490276]
[1764756232547,1.9338,3062.0,3061.9,0.00287876]
[1764756234047,42.7338,3062.0,3061.9,0.00287876]
[1764756234751,1.4927,3061.7,3061.6,0.00490276]
[1764756235745,1.4927,3061.4,3061.3,3.946]
[1764756235948,1.49606815,3061.4,3061.3,4.7342331]
[1764756236148,1.49606815,3061.4,3061.3,3.9483331]
[1764756236651,1.49606815,3061.4,3061.3,4.7342331]
[1764756237356,1.49606815,3061.4,3061.3,3.9483331]
[1764756237951,1.49606815,3061.4,3061.3,4.7342331]
[1764756238854,0.00336815,3061.4,3061.3,4.7342331]
[1764756239745,4.7005,3062.2,3062.1,1.5241]
[1764756240254,0.7377,3061.8,3061.7,1.68737]
[1764756240751,0.74120888,3061.8,3061.7,1.68737]
[1764756241256,0.00350888,3061.8,3061.7,1.68737]
[1764756241551,1.49620888,3061.8,3061.7,1.68737]
[1764756243657,0.00350888,3061.8,3061.7,1.68737]
[1764756244246,0.00350888,3061.8,3061.7,4.89517]
[1764756245848,0.74490888,3061.8,3061.7,4.89517]
[1764756246048,0.00350888,3061.8,3061.7,4.89517]
[1764756247255,1.51120888,3061.8,3061.7,4.89517]
[1764756247463,1.51120888,3061.8,3061.7,4.10927]
[1764756247651,1.51120888,3061.8,3061.7,0.16327]
[1764756248165,1.51120888,3061.8,3061.3,1.4914331]
[1764756248166,1.5077,3061.4,3061.3,1.4914331]
[1764756249463,1.5077,3061.4,3061.3,0.7386331]
[1764756249660,1.5077,3061.4,3061.3,0.0023331]
[1764756251466,1.5077,3061.4,3061.3,0.7386331]
[1764756252466,1.5077,3061.4,3061.3,0.0023331]
[1764756252769,1.5077,3061.1,3061.0,1.49400276]
[1764756253265,1.5077,3061.1,3061.0,0.74120276]
[1764756253963,1.5077,3061.1,3061.0,0.00903694]
[1764756255867,1.5077,3061.1,3061.0,0.74533694]
[1764756257466,1.5077,3061.1,3061.0,0.00903694]
[1764756259673,1.5077,3061.1,3061.0,0.74533694]
[1764756260075,1.5077,3061.1,3061.0,1.49813694]
[1764756260371,1.5077,3061.1,3061.0,0.74533694]
[1764756264175,1.5077,3061.1,3061.0,0.00903694]
[1764756264973,1.5077,3061.1,3061.0,0.74533694]
[1764756265570,3.2078,3061.3,3061.0,1.80643694]
[1764756265775,3.9492,3061.3,3061.2,1.6524]
[1764756266876,4.7155,3061.3,3061.2,1.6524]
[1764756267077,4.7155,3061.3,3061.2,0.8996]
[1764756268378,4.7155,3061.3,3061.2,1.6524]
[1764756269572,3.9492,3061.3,3061.2,1.6524]
[1764756270074,4.7155,3061.3,3061.2,1.6524]
[1764756270673,3.9492,3061.3,3061.2,1.6524]
[1764756271170,4.7155,3061.3,3061.2,1.6524]
[1764756272169,4.7155,3061.7,3061.6,1.4891]
[1764756273186,1.9977,3061.5,3061.4,0.93739]
[1764756273381,1.9977,3061.5,3061.4,0.16329]
[1764756273878,1.9977,3061.5,3061.4,0.93739]
[1764756274271,1.9977,3061.5,3061.4,0.16329]
[1764756274875,1.9977,3061.5,3061.4,0.93739]
[1764756275978,1.9977,3061.5,3061.4,1.67449]
[1764756276182,1.9977,3061.5,3061.4,0.16329]
[1764756279785,1.9977,3061.5,3061.4,0.95349]
[1764756280085,1.9977,3061.5,3061.4,1.69699]
[1764756280688,0.7767,3061.5,3061.4,1.69699]
[1764756281293,3.2078,3061.7,3061.6,1.69698]
[1764756281491,1.5277,3062.2,3062.1,1.5337]
[1764756281787,1.9688,3062.5,3062.4,1.5337]
[1764756282394,1.9716897,3062.5,3062.4,1.5337]
[1764756283184,1.5277,3062.3,3062.2,1.69694]
[1764756283388,0.7856,3062.3,3062.2,1.69694]
[1764756285792,1.5277,3062.3,3062.2,0.95344]
[1764756286292,0.7856,3062.3,3062.2,1.69694]
[1764756286594,1.5305897,3062.5,3062.4,1.5337]
[1764756286784,0.0028897,3062.5,3062.4,1.69694]
[1764756287184,1.9771897,3062.5,3062.4,1.69694]
[1764756287886,1.9771897,3062.5,3062.4,0.16324]
[1764756288290,1.9771897,3062.5,3062.4,0.95344]
[1764756288991,1.9771897,3062.5,3062.4,0.16324]
[1764756290086,1.5277,3062.2,3062.1,3.2078]
[1764756290286,0.4494897,3062.5,3062.0,1.5337]
[1764756290486,1.5277,3062.1,3062.0,1.5337]
[1764756291686,1.5277,3062.1,3062.0,0.7902]
[1764756291893,1.9743,3062.0,3061.9,0.16326]
[1764756292088,1.9743,3062.0,3061.9,0.95346]
[1764756292789,1.5277,3062.0,3061.9,1.69696]
[1764756295394,0.7856,3062.0,3061.9,1.69696]
[1764756296697,0.7856,3062.1,3062.0,1.69696]
[1764756296892,1.5277,3062.1,3062.0,1.69696]
[1764756298996,1.9771897,3062.5,3062.4,0.7902]
[1764756299590,1.5305897,3062.5,3062.4,1.5337]
[1764756303207,1.4834,3062.4,3062.3,0.16324]
[1764756303498,1.4834,3062.4,3062.3,0.92864]
[1764756303704,1.4834,3062.4,3062.3,1.68464]
[1764756305303,0.0028897,3062.5,3062.4,1.68464]
[1764756305809,1.9342897,3062.5,3062.4,0.16324]
[1764756306104,1.9342897,3062.5,3062.4,1.68464]
[1764756307093,1.4862897,3062.5,3062.4,1.68464]
[1764756307293,0.7440897,3062.5,3062.4,1.68464]
[1764756307507,1.4862897,3062.5,3062.4,1.68464]
[1764756308504,1.9342897,3062.5,3062.4,0.16324]
[1764756309403,3.10795757,3062.5,3062.4,0.16324]
[1764756309600,1.4834,3062.3,3062.2,3.2078]
[1764756310102,1.4834,3062.3,3062.2,3.9732]
[1764756310406,1.62455757,3062.5,3062.2,3.9732]
[1764756310407,0.7440897,3062.5,3062.4,1.68464]
[1764756310797,1.4862897,3062.5,3062.4,1.68464]
[1764756310996,1.9342897,3062.5,3062.4,1.68464]
[1764756312403,1.9342897,3062.5,3062.4,0.92864]
[1764756312598,1.9342897,3062.5,3062.4,0.16324]
[1764756315310,1.9342897,3062.5,3062.4,1.68464]
[1764756316203,1.9342897,3062.5,3062.4,0.92864]
[1764756316507,1.9342897,3062.5,3062.4,1.33077226]
[1764756316705,1.9342897,3062.5,3062.4,0.92864]
[1764756318615,1.9342897,3062.5,3062.4,0.16324]
[1764756319512,1.4834,3062.3,3062.2,1.16753226]
[1764756319808,1.4834,3062.2,3062.1,1.16753226]
[1764756320510,2.63070504,3062.2,3062.1,1.16753226]
[1764756321211,1.4834,3062.1,3062.0,1.16753226]
[1764756321411,1.9314,3062.0,3061.9,1.16753226]
[1764756322512,1.9314,3062.0,3061.9,2.68893226]
[1764756323113,1.9314,3062.0,3061.9,1.93293226]
[1764756323611,1.9314,3062.0,3061.9,1.16753226]
[1764756324612,1.9314,3062.0,3061.9,1.93293226]
[1764756324813,1.9314,3062.0,3061.9,2.68893226]
[1764756325110,1.9314,3062.0,3061.9,1.93293226]
[1764756325311,1.9314,3062.0,3061.9,2.68893226]
[1764756326010,3.949,3062.3,3062.2,0.7654]
[1764756326312,4.6912,3062.3,3062.2,1.5214]
[1764756326507,4.6912,3062.3,3062.2,0.7654]
[1764756327116,0.7412,3062.0,3061.9,2.68893226]
[1764756327318,0.7412,3062.0,3061.9,1.5214]
[1764756327613,0.7412,3062.0,3061.9,2.68893226]
[1764756327814,1.4834,3062.0,3061.9,2.68893226]
[1764756328014,1.9314,3062.0,3061.9,1.16753226]
[1764756328216,1.9314,3062.0,3061.8,2.85220226]
[1764756328217,1.4834,3061.9,3061.8,2.85220226]
[1764756329106,1.4834,3061.9,3061.8,2.09620226]
[1764756329614,1.4834,3061.9,3061.8,1.33080226]
[1764756330013,1.4834,3061.9,3061.8,2.09620226]
[1764756330617,1.4834,3061.9,3061.8,2.85220226]
[1764756330813,0.7412,3061.9,3061.8,2.85220226]
[1764756331019,1.4834,3061.9,3061.8,2.85220226]
[1764756331220,5.83850504,3062.3,3062.2,0.7654]
[1764756331419,5.83850504,3062.3,3061.8,1.33080226]
[1764756331720,0.7412,3061.9,3061.8,2.85220226]
[1764756332522,1.4834,3061.9,3061.8,2.85220226]
[1764756334224,2.63070504,3061.9,3061.8,0.16327]
[1764756334913,2.63070504,3061.9,3061.8,0.96757]
[1764756336015,2.63070504,3061.9,3061.8,0.16327]
[1764756336521,2.63070504,3061.9,3061.8,0.96197]
[1764756337624,2.63070504,3061.9,3061.8,0.16327]
[1764756338425,2.63070504,3061.9,3061.8,0.96197]
[1764756341725,2.63070504,3061.9,3061.8,0.16327]
[1764756341927,2.63070504,3061.9,3061.8,0.96197]
[1764756346131,1.4913,3061.9,3061.8,1.71057]
[1764756346329,1.4913,3061.9,3061.8,2.87810226]
[1764756346529,0.7412,3061.9,3061.8,2.87810226]
[1764756346835,1.4913,3061.9,3061.8,2.87810226]
[1764756348734,3.9984,3062.2,3062.1,0.7987]
[1764756348935,4.7485,3062.2,3062.1,0.7987]
[1764756349229,0.7906,3061.9,3061.8,1.71057]
[1764756349432,1.5407,3061.9,3061.8,1.71057]
[1764756350532,0.7906,3061.9,3061.8,1.71057]
[1764756351125,0.7906,3061.9,3061.8,3.46186839]
[1764756351330,3.2078,3062.2,3062.1,1.5473]
[1764756352334,3.9984,3062.2,3062.1,1.71055]
[1764756352939,4.7485,3062.2,3062.1,1.71055]
[1764756353236,3.9984,3062.2,3062.1,1.71055]
[1764756353430,1.59819474,3062.5,3062.4,1.71054]
[1764756353431,0.0028897,3062.5,3062.4,1.71054]
[1764756353729,0.0028897,3062.5,3062.4,6.06564504]
[1764756353930,1.5435897,3062.5,3062.4,1.71054]
[1764756354132,1.5435897,3062.5,3062.4,3.46341033]
[1764756354324,0.7934897,3062.5,3062.4,3.46220375]
[1764756354521,0.0028897,3062.5,3062.4,3.46220375]
[1764756354932,0.7934897,3062.5,3062.4,3.46220375]
[1764756355334,0.7934897,3062.5,3062.4,1.71054]
[1764756355527,0.0028897,3062.5,3062.4,3.46220375]
[1764756356334,1.9975897,3062.5,3062.4,1.71054]
[1764756356534,0.0028897,3062.5,3062.4,1.71054]
[1764756359234,0.0028897,3062.5,3062.4,2.87682182]
[1764756359736,0.0028897,3062.5,3062.4,1.71054]
[1764756360532,0.0028897,3062.5,3062.4,3.46220375]
[1764756360940,0.0028897,3062.5,3062.4,1.71054]
[1764756361739,0.0028897,3062.5,3062.4,3.45910902]
[1764756362235,1.9975897,3062.5,3062.4,1.5473]
[1764756362430,1.5407,3062.4,3062.3,3.2078]
[1764756362625,1.5407,3062.4,3062.3,4.7551]
[1764756363242,0.7906,3062.4,3062.3,4.7551]
[1764756363435,1.5966,3062.4,3062.3,4.7551]
[1764756367846,1.5966,3062.4,3062.3,1.5473]
[1764756368741,1.5966,3062.4,3062.3,0.7987]
[1764756368938,0.4568897,3062.5,3062.1,3.2078]
[1764756368939,1.5746,3062.2,3062.1,3.2078]
[1764756369244,2.0364,3062.0,3061.9,2.89896794]
[1764756371141,2.0364,3062.0,3061.9,2.11606794]
[1764756372046,2.0364,3062.0,3061.9,2.89896794]
[1764756373648,2.0364,3062.0,3061.9,0.95006]
[1764756373951,2.0364,3062.0,3061.9,1.73296]
[1764756374347,2.0364,3062.0,3061.9,0.95006]
[1764756374543,1.5746,3061.8,3061.7,2.73570794]
[1764756381860,1.5746,3061.8,3061.7,0.7868]
[1764756383250,1.5746,3061.7,3061.6,2.11608794]
[1764756383670,1.5746,3061.7,3061.6,2.89898794]
[1764756383958,2.0364,3062.0,3061.9,0.7868]
[1764756384552,2.0364,3062.0,3061.6,1.32928794]
[1764756384553,1.5746,3061.7,3061.6,2.89898794]
[1764756384850,0.7686,3061.7,3061.6,2.89898794]
[1764756385860,1.5746,3061.7,3061.6,2.89898794]
[1764756386058,2.0364,3062.0,3061.9,1.5697]
[1764756387658,2.0364,3062.0,3061.9,0.7868]
[1764756388052,1.5746,3061.9,3061.8,0.95007]
[1764756388252,1.5746,3061.9,3061.8,0.16327]
[1764756388755,1.5746,3061.9,3061.8,0.95007]
[1764756390766,42.3746,3061.9,3061.8,0.95007]
[1764756391065,1.5746,3061.9,3061.8,0.95007]
[1764756392161,1.5746,3061.9,3061.8,2.11607794]
[1764756394760,4.7824,3061.9,3061.8,1.16600794]
[1764756394961,4.7824,3061.9,3061.4,1.95870794]
[1764756394962,1.9967,3061.5,3061.4,1.95870794]
[1764756395165,1.9967,3061.5,3061.4,2.72200794]
[1764756395661,1.9967,3061.5,3061.4,1.95870794]
[1764756395860,1.5489,3061.5,3061.4,2.72200794]
[1764756396567,1.5489,3061.5,3061.4,2.88529794]
[1764756399263,2.0225,3061.5,3061.4,1.32929794]
[1764756399468,3.19608551,3061.5,3061.4,0.16329]
[1764756402467,1.544,3061.4,3061.3,1.16600794]
[1764756402666,1.544,3061.3,3061.2,3.2078]
[1764756403171,1.544,3061.3,3061.2,4.0168]
[1764756403364,1.544,3061.3,3061.2,3.2078]
[1764756403866,1.544,3061.3,3061.2,4.8274]
[1764756404562,1.544,3061.3,3061.2,4.0168]
[1764756405469,1.544,3061.3,3061.2,4.8274]
[1764756409167,1.544,3061.3,3061.2,4.0168]
[1764756409470,1.544,3061.3,3061.2,3.2078]
[1764756409667,1.544,3061.1,3061.0,0.00903694]
[1764756409862,2.71758551,3061.1,3061.0,0.00903694]
[1764756413475,43.51758551,3061.1,3061.0,0.00903694]
[1764756414874,1.544,3060.8,3060.7,3.2078]
[1764756415776,1.544,3060.8,3060.7,3.21031682]
[1764756416170,5.92538551,3060.8,3060.7,0.00251682]
[1764756416764,2.0176,3060.5,3060.4,0.00490276]
[1764756416973,3.19118551,3060.5,3060.4,0.00490276]
[1764756417669,3.19118551,3060.5,3060.4,0.00818383]
[1764756421376,5.92538551,3060.8,3060.7,0.809]
[1764756421576,0.8105,3060.5,3060.4,1.62778383]
[1764756421881,1.544,3060.5,3060.4,1.62778383]
[1764756422282,2.0176,3060.5,3060.4,1.62778383]
[1764756424477,2.0176,3060.5,3060.4,0.81718383]
[1764756424984,2.0176,3060.5,3060.4,1.55908383]
[1764756427082,2.0176,3060.5,3060.4,0.81718383]
[1764756427283,2.0176,3060.5,3060.4,1.55908383]
[1764756427675,2.0176,3060.5,3060.4,0.81718383]
[1764756429279,3.19118551,3060.5,3060.4,0.00818383]
[1764756429586,1.4722,3059.8,3059.7,9.01188]
[1764756429789,1.4722,3059.8,3059.7,0.96498]
[1764756430181,42.2722,3059.8,3059.7,1.70688]
[1764756430381,42.27592361,3059.8,3059.7,1.70994284]
[1764756431588,42.27592361,3059.8,3059.7,0.00306284]
[1764756432178,1.9258,3059.5,3059.4,0.00490276]
[1764756432381,1.9258,3059.5,3059.4,0.80650276]
[1764756432580,1.9258,3059.5,3059.4,1.54840276]
[1764756433189,1.9258,3059.5,3059.4,1.5507546]
[1764756433490,1.4722,3059.5,3059.4,1.7141546]
[1764756434290,0.7372,3059.5,3059.4,1.7141546]
[1764756434491,40.80372361,3059.8,3059.7,0.8016]
[1764756436988,0.7372,3059.5,3059.4,1.7141546]
[1764756438693,40.80372361,3059.8,3059.7,1.70688]
[1764756438898,1.9458,3060.5,3060.4,1.5435]
[1764756439390,42.7458,3060.5,3060.4,1.5435]
[1764756440000,42.74876165,3060.5,3060.4,0.8016]
[1764756440295,1.4722,3060.1,3060.0,1.70686]
[1764756440996,1.94876165,3060.5,3060.4,0.8016]
[1764756441195,1.94876165,3060.5,3060.4,1.5435]
[1764756443701,0.74016165,3060.5,3060.4,1.5435]
[1764756443898,0.00296165,3060.5,3060.4,1.70684]
[1764756444096,3.21270276,3061.1,3061.0,1.985]
[1764756444494,3.94990276,3061.1,3061.0,1.985]
[1764756444703,0.00490276,3061.1,3061.0,2.14831]
[1764756445199,0.00770366,3061.1,3061.0,3.31540914]
[1764756445399,0.00770366,3061.1,3061.0,2.14831]
[1764756450599,0.00770366,3061.1,3061.0,5.35611]
[1764756451108,1.47990366,3061.1,3061.0,5.35611]
[1764756451410,1.47990366,3061.1,3060.6,2.89843042]
[1764756451411,0.7372,3061.0,3060.9,1.5435]
[1764756453007,1.4722,3061.0,3060.9,1.5435]
[1764756454206,1.92958537,3061.1,3061.0,1.9725]
[1764756454608,2.73728537,3061.1,3061.0,1.9725]